[Event "*** Titled Tuesday Blitz"]
[Site "Chess.com"]
[Date "2019.12.03"]
[Round "1"]
[White "Korchmar_Vasiliy"]
[Black "VeraNebolsina"]
[Result "1-0"]
[WhiteElo "2756"]
[BlackElo "2388"]
[TimeControl "180+2"]
[EndTime "13:08:24 PST"]
[Termination "Korchmar_Vasiliy won by resignation"]

1. d4 {[%clk 0:03:00.1]} 1... Nf6 {[%clk 0:02:59.9]} 2. c4 {[%clk 0:03:01]} 2...
g6 {[%clk 0:03:00.5]} 3. Nc3 {[%clk 0:03:02.2]} 3... Bg7 {[%clk 0:03:01.5]} 4.
e4 {[%clk 0:03:02.9]} 4... d6 {[%clk 0:03:02.6]} 5. h3 {[%clk 0:03:03.5]} 5...
O-O {[%clk 0:03:02.5]} 6. Nf3 {[%clk 0:03:04.3]} 6... e5 {[%clk 0:03:01.3]} 7.
d5 {[%clk 0:03:04.8]} 7... Nbd7 {[%clk 0:02:58.8]} 8. g4 {[%clk 0:03:05.3]} 8...
Nc5 {[%clk 0:02:57.3]} 9. Qc2 {[%clk 0:03:05.1]} 9... a5 {[%clk 0:02:57.4]} 10.
Be3 {[%clk 0:03:05.2]} 10... b6 {[%clk 0:02:38.2]} 11. Be2 {[%clk 0:03:06.1]}
11... Bd7 {[%clk 0:02:27.1]} 12. Nd2 {[%clk 0:03:07.3]} 12... Ne8 {[%clk
0:02:18.4]} 13. h4 {[%clk 0:03:06.7]} 13... f5 {[%clk 0:02:05.1]} 14. gxf5
{[%clk 0:03:08.6]} 14... gxf5 {[%clk 0:02:05.9]} 15. h5 {[%clk 0:02:54.4]} 15...
f4 {[%clk 0:01:22.3]} 16. Bxc5 {[%clk 0:02:55.4]} 16... dxc5 {[%clk 0:01:18.4]}
17. h6 {[%clk 0:02:57.3]} 17... Bf6 {[%clk 0:01:18.5]} 18. O-O-O {[%clk
0:02:58.4]} 18... Nd6 {[%clk 0:01:18.1]} 19. Rdg1+ {[%clk 0:02:53]} 19... Kh8
{[%clk 0:01:19.1]} 20. Bg4 {[%clk 0:02:54.1]} 20... Bxg4 {[%clk 0:01:16]} 21.
Rxg4 {[%clk 0:02:56]} 21... Qd7 {[%clk 0:01:17.1]} 22. Rhg1 {[%clk 0:02:51.4]}
22... Rg8 {[%clk 0:01:17.5]} 23. Qd1 {[%clk 0:02:48.7]} 23... Rxg4 {[%clk
0:01:08.1]} 24. Rxg4 {[%clk 0:02:50.6]} 24... Rg8 {[%clk 0:01:07.2]} 25. Rxg8+
{[%clk 0:02:51.5]} 25... Kxg8 {[%clk 0:01:08.3]} 26. Qg1+ {[%clk 0:02:53.4]}
26... Kf8 {[%clk 0:01:05.1]} 27. Qg2 {[%clk 0:02:27.4]} 27... Nf7 {[%clk
0:00:52.7]} 28. Qh2 {[%clk 0:01:59.2]} 28... Bg5 {[%clk 0:00:34.5]} 29. Nf3
{[%clk 0:01:59.6]} 29... Qg4 {[%clk 0:00:28.4]} 30. Qh1 {[%clk 0:01:53.1]} 30...
Bxh6 {[%clk 0:00:19.7]} 31. Nb5 {[%clk 0:01:46.8]} 31... Kg7 {[%clk 0:00:11.7]}
32. Nxc7 {[%clk 0:01:46.4]} 32... Bg5 {[%clk 0:00:05.3]} 33. Ne6+ {[%clk
0:01:40.8]} 33... Kg8 {[%clk 0:00:04.7]} 34. Nexg5 {[%clk 0:01:32.1]} 34... Nxg5
{[%clk 0:00:05.4]} 35. Nxe5 {[%clk 0:01:33.7]} 35... Qh3 {[%clk 0:00:05.1]} 36.
Qxh3 {[%clk 0:00:57.7]} 36... Nxh3 {[%clk 0:00:07]} 37. d6 {[%clk 0:00:59.6]}
37... Kf8 {[%clk 0:00:07.5]} 38. Nc6 {[%clk 0:01:00.3]} 38... Ke8 {[%clk
0:00:08.3]} 39. e5 {[%clk 0:01:01.8]} 39... Kd7 {[%clk 0:00:09.2]} 40. Nb8+
{[%clk 0:00:54.7]} 40... Ke6 {[%clk 0:00:09.7]} 41. d7 {[%clk 0:00:53.3]} 41...
Ke7 {[%clk 0:00:10.8]} 42. e6 {[%clk 0:00:55.2]} 1-0

[Event "*** Titled Tuesday Blitz"]
[Site "Chess.com"]
[Date "2019.12.03"]
[Round "1"]
[White "BillieKimbah"]
[Black "Region_07"]
[Result "1-0"]
[WhiteElo "2742"]
[BlackElo "2368"]
[TimeControl "180+2"]
[EndTime "13:08:27 PST"]
[Termination "BillieKimbah won on time"]

1. c4 {[%clk 0:02:56.4]} 1... f5 {[%clk 0:02:58.8]} 2. Nc3 {[%clk 0:02:53.8]}
2... Nf6 {[%clk 0:02:58.4]} 3. Nf3 {[%clk 0:02:54.5]} 3... d6 {[%clk 0:02:55.2]}
4. d4 {[%clk 0:02:53.5]} 4... g6 {[%clk 0:02:54]} 5. e3 {[%clk 0:02:53.9]} 5...
Bg7 {[%clk 0:02:55.1]} 6. Be2 {[%clk 0:02:54.7]} 6... O-O {[%clk 0:02:55.9]} 7.
O-O {[%clk 0:02:55.7]} 7... c6 {[%clk 0:02:56.1]} 8. b4 {[%clk 0:02:55.2]} 8...
Qc7 {[%clk 0:02:45.5]} 9. Qb3 {[%clk 0:02:39.5]} 9... Kh8 {[%clk 0:02:33.9]} 10.
a4 {[%clk 0:02:39.4]} 10... e5 {[%clk 0:02:32.5]} 11. Ba3 {[%clk 0:02:31.2]}
11... e4 {[%clk 0:02:30.7]} 12. Nd2 {[%clk 0:02:30.5]} 12... Be6 {[%clk
0:02:31.8]} 13. Rac1 {[%clk 0:02:17.3]} 13... Qf7 {[%clk 0:02:01.9]} 14. b5
{[%clk 0:02:09.7]} 14... Rd8 {[%clk 0:02:00.6]} 15. bxc6 {[%clk 0:01:27.4]}
15... bxc6 {[%clk 0:02:00.8]} 16. Rb1 {[%clk 0:01:28.8]} 16... d5 {[%clk
0:01:26.6]} 17. Qb7 {[%clk 0:01:27.4]} 17... Nbd7 {[%clk 0:01:17.2]} 18. Qxc6
{[%clk 0:01:25.3]} 18... Rac8 {[%clk 0:01:16.9]} 19. Qa6 {[%clk 0:01:24.7]}
19... dxc4 {[%clk 0:01:13.3]} 20. Rb7 {[%clk 0:01:23.1]} 20... Nd5 {[%clk
0:00:22.7]} 21. Rc1 {[%clk 0:01:21.3]} 21... Nxc3 {[%clk 0:00:21.5]} 22. Rxc3
{[%clk 0:01:23.2]} 22... Bd5 {[%clk 0:00:22.9]} 23. Bxc4 {[%clk 0:01:05.7]}
23... Bxb7 {[%clk 0:00:21.2]} 24. Qxb7 {[%clk 0:01:05.5]} 24... Qf6 {[%clk
0:00:18.6]} 25. a5 {[%clk 0:00:53.5]} 25... Nc5 {[%clk 0:00:17.6]} 26. Bxc5
{[%clk 0:00:34.7]} 26... Rxc5 {[%clk 0:00:18.1]} 27. Qxa7 {[%clk 0:00:36.3]}
27... Rdc8 {[%clk 0:00:16.5]} 28. g3 {[%clk 0:00:28.9]} 28... R5c7 {[%clk
0:00:17.5]} 29. Qb6 {[%clk 0:00:25.9]} 29... Rc6 {[%clk 0:00:17.2]} 30. Qb3
{[%clk 0:00:22.6]} 30... g5 {[%clk 0:00:17.4]} 31. Rc2 {[%clk 0:00:22.6]} 31...
Qg6 {[%clk 0:00:16.8]} 32. a6 {[%clk 0:00:23.2]} 32... f4 {[%clk 0:00:15.2]} 33.
a7 {[%clk 0:00:24.2]} 33... Ra8 {[%clk 0:00:14.4]} 34. Bd5 {[%clk 0:00:21.9]}
34... Rxc2 {[%clk 0:00:14.8]} 35. Qxc2 {[%clk 0:00:23.8]} 35... Qe8 {[%clk
0:00:12.8]} 36. Bxa8 {[%clk 0:00:23.7]} 36... Qxa8 {[%clk 0:00:14.6]} 37. Qxe4
{[%clk 0:00:23.6]} 1-0

[Event "*** Titled Tuesday Blitz"]
[Site "Chess.com"]
[Date "2019.12.03"]
[Round "1"]
[White "chesstatour"]
[Black "WPWPWP-2015"]
[Result "0-1"]
[WhiteElo "1960"]
[BlackElo "2532"]
[TimeControl "180+2"]
[EndTime "13:08:29 PST"]
[Termination "WPWPWP-2015 won on time"]

1. c4 {[%clk 0:03:01.8]} 1... Nf6 {[%clk 0:02:58.5]} 2. Nc3 {[%clk 0:03:02.4]}
2... e5 {[%clk 0:02:57.7]} 3. Nf3 {[%clk 0:03:02.5]} 3... Nc6 {[%clk 0:02:58.1]}
4. d4 {[%clk 0:03:03.7]} 4... exd4 {[%clk 0:02:57.4]} 5. Nxd4 {[%clk 0:03:04.8]}
5... Bb4 {[%clk 0:02:57.5]} 6. g3 {[%clk 0:03:05.9]} 6... O-O {[%clk 0:02:56.5]}
7. Bg2 {[%clk 0:03:06.6]} 7... Re8 {[%clk 0:02:53.2]} 8. Nc2 {[%clk 0:03:04.5]}
8... Bxc3+ {[%clk 0:02:53.5]} 9. bxc3 {[%clk 0:03:06.4]} 9... Ne5 {[%clk
0:02:54.6]} 10. c5 {[%clk 0:02:49.5]} 10... Qe7 {[%clk 0:02:53.5]} 11. O-O
{[%clk 0:02:08.7]} 11... Qxc5 {[%clk 0:02:43]} 12. Qd4 {[%clk 0:02:00.5]} 12...
Qxd4 {[%clk 0:02:35.2]} 13. cxd4 {[%clk 0:02:02.4]} 13... Nc4 {[%clk 0:02:32.4]}
14. Re1 {[%clk 0:01:47.5]} 14... d5 {[%clk 0:02:31]} 15. Bf4 {[%clk 0:01:41.7]}
15... c6 {[%clk 0:02:29.5]} 16. f3 {[%clk 0:01:34.3]} 16... Bf5 {[%clk
0:02:26.7]} 17. Rac1 {[%clk 0:01:25.1]} 17... Bxc2 {[%clk 0:02:12.1]} 18. Rxc2
{[%clk 0:01:24.4]} 18... Ne3 {[%clk 0:02:01.1]} 19. Rb2 {[%clk 0:01:12.2]} 19...
b6 {[%clk 0:01:45.7]} 20. Bh3 {[%clk 0:01:08.6]} 20... Nc4 {[%clk 0:01:43.6]}
21. Rbb1 {[%clk 0:00:53.9]} 21... h6 {[%clk 0:01:39]} 22. Bc1 {[%clk 0:00:23.3]}
22... b5 {[%clk 0:01:33.7]} 23. Bg2 {[%clk 0:00:23.9]} 23... Ne3 {[%clk
0:01:32.3]} 24. Bh3 {[%clk 0:00:24.7]} 24... a5 {[%clk 0:01:31.4]} 25. Kf2
{[%clk 0:00:16.4]} 25... Nc4 {[%clk 0:01:21.9]} 26. Bg2 {[%clk 0:00:17.3]} 26...
Rad8 {[%clk 0:01:18.3]} 27. h3 {[%clk 0:00:18]} 27... a4 {[%clk 0:01:18.6]} 28.
Ra1 {[%clk 0:00:10.6]} 28... a3 {[%clk 0:01:17.8]} 29. Rb1 {[%clk 0:00:11.5]}
29... Re6 {[%clk 0:01:05.3]} 30. g4 {[%clk 0:00:10.9]} 30... Nh7 {[%clk
0:00:54.8]} 31. h4 {[%clk 0:00:11.7]} 31... Nf8 {[%clk 0:00:55.5]} 32. e3 {[%clk
0:00:09.5]} 32... Ng6 {[%clk 0:00:55]} 33. Re2 {[%clk 0:00:09.4]} 33... Nxh4
{[%clk 0:00:54.6]} 34. Bd2 {[%clk 0:00:08.6]} 34... Ng6 {[%clk 0:00:53.1]} 35.
Bh3 {[%clk 0:00:08.7]} 35... Ree8 {[%clk 0:00:51]} 36. Bc3 {[%clk 0:00:08.4]}
36... f6 {[%clk 0:00:41.6]} 37. Bb4 {[%clk 0:00:09.1]} 37... Kf7 {[%clk
0:00:36]} 38. Rbe1 {[%clk 0:00:09.5]} 38... Ra8 {[%clk 0:00:34.3]} 39. Bc5
{[%clk 0:00:10.5]} 39... b4 {[%clk 0:00:31]} 40. Rb1 {[%clk 0:00:10.1]} 40...
Nb2 {[%clk 0:00:30.8]} 41. Bxb4 {[%clk 0:00:09.6]} 41... Rab8 {[%clk 0:00:31.2]}
0-1

[Event "*** Titled Tuesday Blitz"]
[Site "Chess.com"]
[Date "2019.12.03"]
[Round "1"]
[White "Radzio1987"]
[Black "GulamaliRises"]
[Result "0-1"]
[WhiteElo "2874"]
[BlackElo "2488"]
[TimeControl "180+2"]
[EndTime "13:08:31 PST"]
[Termination "GulamaliRises won by resignation"]

1. c4 {[%clk 0:03:01.9]} 1... e5 {[%clk 0:02:56.6]} 2. Nc3 {[%clk 0:03:02.6]}
2... Nc6 {[%clk 0:02:58.5]} 3. Nf3 {[%clk 0:03:02.2]} 3... Nf6 {[%clk
0:02:59.5]} 4. a3 {[%clk 0:03:00.9]} 4... g6 {[%clk 0:02:49.5]} 5. e3 {[%clk
0:03:01.5]} 5... Bg7 {[%clk 0:02:50.2]} 6. Qc2 {[%clk 0:03:02.7]} 6... O-O
{[%clk 0:02:51]} 7. b4 {[%clk 0:03:03.9]} 7... d6 {[%clk 0:02:48.6]} 8. d3
{[%clk 0:03:04.4]} 8... Nd7 {[%clk 0:02:32.4]} 9. Bb2 {[%clk 0:03:02.1]} 9... f5
{[%clk 0:02:32.9]} 10. Be2 {[%clk 0:02:59.7]} 10... g5 {[%clk 0:02:13.6]} 11.
Nd2 {[%clk 0:02:51.5]} 11... Nf6 {[%clk 0:02:11.3]} 12. h3 {[%clk 0:02:45.8]}
12... Ne7 {[%clk 0:02:03.3]} 13. g4 {[%clk 0:02:38.8]} 13... f4 {[%clk
0:01:59.5]} 14. Nde4 {[%clk 0:02:32.8]} 14... Nxe4 {[%clk 0:01:55.2]} 15. dxe4
{[%clk 0:02:30.3]} 15... Ng6 {[%clk 0:01:57.1]} 16. O-O-O {[%clk 0:02:29.4]}
16... Qe7 {[%clk 0:01:46.2]} 17. c5 {[%clk 0:02:22.1]} 17... dxc5 {[%clk
0:01:32.9]} 18. Nd5 {[%clk 0:02:10.2]} 18... Qf7 {[%clk 0:01:33.4]} 19. Qxc5
{[%clk 0:02:01.1]} 19... Be6 {[%clk 0:01:22.4]} 20. Kb1 {[%clk 0:01:57.3]} 20...
c6 {[%clk 0:01:16.5]} 21. Nc3 {[%clk 0:01:57.9]} 21... Rfc8 {[%clk 0:00:58.6]}
22. Qa5 {[%clk 0:01:58.2]} 22... fxe3 {[%clk 0:00:25]} 23. fxe3 {[%clk
0:01:58.4]} 23... Qf2 {[%clk 0:00:26.6]} 24. Rd6 {[%clk 0:01:50.1]} 24... Bb3
{[%clk 0:00:25.2]} 25. Rd7 {[%clk 0:01:35]} 25... b6 {[%clk 0:00:21.2]} 26. Qa6
{[%clk 0:01:35.3]} 26... Qxe3 {[%clk 0:00:21.1]} 27. Qb7 {[%clk 0:01:24.8]}
27... Bf8 {[%clk 0:00:20.2]} 28. Rf1 {[%clk 0:01:24.3]} 28... Nf4 {[%clk
0:00:21]} 29. Bd1 {[%clk 0:01:12.5]} 29... Bc4 {[%clk 0:00:20.6]} 30. Rf3 {[%clk
0:01:13.6]} 30... Qe1 {[%clk 0:00:21.8]} 31. Bc1 {[%clk 0:00:54.6]} 31... Be6
{[%clk 0:00:22.4]} 32. Rd2 {[%clk 0:00:52.4]} 32... Rd8 {[%clk 0:00:22.7]} 33.
Re3 {[%clk 0:00:28.8]} 33... Qg1 {[%clk 0:00:13.7]} 34. Rxd8 {[%clk 0:00:23.7]}
34... Rxd8 {[%clk 0:00:15.6]} 35. Bc2 {[%clk 0:00:24.8]} 35... c5 {[%clk
0:00:15.1]} 36. b5 {[%clk 0:00:24.8]} 36... c4 {[%clk 0:00:15.6]} 37. Ne2 {[%clk
0:00:20.2]} 37... Nxe2 {[%clk 0:00:13.3]} 38. Rxe2 {[%clk 0:00:21.9]} 38... Bxa3
{[%clk 0:00:14.3]} 39. Bd1 {[%clk 0:00:12.5]} 39... Qxd1 {[%clk 0:00:15]} 40.
Rc2 {[%clk 0:00:13.6]} 40... Bxc1 {[%clk 0:00:14.8]} 0-1

[Event "*** Titled Tuesday Blitz"]
[Site "Chess.com"]
[Date "2019.12.03"]
[Round "1"]
[White "MITerryble"]
[Black "2nd_life"]
[Result "1/2-1/2"]
[WhiteElo "2856"]
[BlackElo "2475"]
[TimeControl "180+2"]
[EndTime "13:08:43 PST"]
[Termination "Game drawn - insufficient material"]

1. d4 {[%clk 0:03:00.8]} 1... Nf6 {[%clk 0:03:00.1]} 2. Nf3 {[%clk 0:03:01.4]}
2... e6 {[%clk 0:03:00.8]} 3. c4 {[%clk 0:03:02.1]} 3... b6 {[%clk 0:03:01.4]}
4. g3 {[%clk 0:03:02.8]} 4... Ba6 {[%clk 0:03:01.3]} 5. Qa4 {[%clk 0:03:03.3]}
5... Bb7 {[%clk 0:03:00.2]} 6. Bg2 {[%clk 0:03:04.1]} 6... c5 {[%clk 0:03:00.3]}
7. dxc5 {[%clk 0:03:06]} 7... Bxc5 {[%clk 0:02:55.5]} 8. O-O {[%clk 0:03:06.6]}
8... O-O {[%clk 0:02:55.6]} 9. Nc3 {[%clk 0:03:07.2]} 9... a6 {[%clk 0:02:51]}
10. Bf4 {[%clk 0:03:08]} 10... d5 {[%clk 0:02:34.3]} 11. Rfd1 {[%clk 0:03:00.7]}
11... Qe7 {[%clk 0:02:34.8]} 12. cxd5 {[%clk 0:02:56.9]} 12... Nxd5 {[%clk
0:02:31]} 13. Nxd5 {[%clk 0:02:55.2]} 13... Bxd5 {[%clk 0:02:31.5]} 14. Ng5
{[%clk 0:02:53.1]} 14... Bxg2 {[%clk 0:02:06.9]} 15. Kxg2 {[%clk 0:02:54.1]}
15... Ra7 {[%clk 0:02:06.8]} 16. Qe4 {[%clk 0:02:36.1]} 16... g6 {[%clk
0:02:01.4]} 17. h4 {[%clk 0:02:30]} 17... Nd7 {[%clk 0:01:58.6]} 18. Qf3 {[%clk
0:02:20.1]} 18... Nf6 {[%clk 0:01:51.3]} 19. a3 {[%clk 0:02:01.3]} 19... a5
{[%clk 0:01:44]} 20. Be5 {[%clk 0:01:56.2]} 20... Nd5 {[%clk 0:01:22.6]} 21. Ne4
{[%clk 0:01:57.1]} 21... f6 {[%clk 0:01:12.5]} 22. Bc3 {[%clk 0:01:52.2]} 22...
Nxc3 {[%clk 0:01:09.2]} 23. Qxc3 {[%clk 0:01:44.6]} 23... f5 {[%clk 0:00:50.4]}
24. Nxc5 {[%clk 0:01:38.4]} 24... Qxc5 {[%clk 0:00:51.4]} 25. Qxc5 {[%clk
0:01:38.1]} 25... bxc5 {[%clk 0:00:52.7]} 26. Rac1 {[%clk 0:01:39.8]} 26... Rb8
{[%clk 0:00:52.4]} 27. Rd2 {[%clk 0:01:39.8]} 27... Rab7 {[%clk 0:00:49.6]} 28.
Rxc5 {[%clk 0:01:40.7]} 28... Rxb2 {[%clk 0:00:50.5]} 29. Rxb2 {[%clk 0:01:42]}
29... Rxb2 {[%clk 0:00:52]} 30. e3 {[%clk 0:01:43.7]} 30... a4 {[%clk
0:00:49.3]} 31. Rc4 {[%clk 0:01:44]} 31... Ra2 {[%clk 0:00:50]} 32. Rxa4 {[%clk
0:01:45.1]} 32... Kf7 {[%clk 0:00:50.9]} 33. Ra7+ {[%clk 0:01:41.6]} 33... Kf6
{[%clk 0:00:52.1]} 34. a4 {[%clk 0:01:42.9]} 34... h6 {[%clk 0:00:53.1]} 35. a5
{[%clk 0:01:43.5]} 35... g5 {[%clk 0:00:54.4]} 36. h5 {[%clk 0:01:36.5]} 36...
g4 {[%clk 0:00:40.1]} 37. a6 {[%clk 0:01:36.8]} 37... Ke5 {[%clk 0:00:41]} 38.
Ra8 {[%clk 0:01:25.9]} 38... Ke4 {[%clk 0:00:41.8]} 39. a7 {[%clk 0:01:23.9]}
39... e5 {[%clk 0:00:41.5]} 40. Rh8 {[%clk 0:01:20.6]} 40... Rxa7 {[%clk
0:00:41.8]} 41. Rxh6 {[%clk 0:01:22.1]} 41... f4 {[%clk 0:00:32.7]} 42. exf4
{[%clk 0:01:19.5]} 42... exf4 {[%clk 0:00:34.6]} 43. Rf6 {[%clk 0:01:15.4]}
43... f3+ {[%clk 0:00:28.9]} 44. Kh2 {[%clk 0:01:16.5]} 44... Ra2 {[%clk
0:00:30]} 45. Rf4+ {[%clk 0:01:17.7]} 45... Kd3 {[%clk 0:00:29.1]} 46. Rxg4
{[%clk 0:01:13.6]} 46... Rxf2+ {[%clk 0:00:29.2]} 47. Kh3 {[%clk 0:01:15.1]}
47... Rf1 {[%clk 0:00:27.3]} 48. Rf4 {[%clk 0:01:15.9]} 48... Ke3 {[%clk
0:00:25.3]} 49. Kg4 {[%clk 0:01:14.1]} 49... f2 {[%clk 0:00:26.3]} 50. Kg5
{[%clk 0:01:10.7]} 50... Rg1 {[%clk 0:00:21.1]} 51. Rxf2 {[%clk 0:00:55.8]}
51... Kxf2 {[%clk 0:00:21.5]} 52. h6 {[%clk 0:00:56.2]} 52... Rxg3+ {[%clk
0:00:22]} 53. Kf6 {[%clk 0:00:57.5]} 53... Rh3 {[%clk 0:00:19]} 54. Kg7 {[%clk
0:00:58.1]} 54... Rxh6 {[%clk 0:00:19.4]} 55. Kxh6 {[%clk 0:00:59.2]} 1/2-1/2

[Event "*** Titled Tuesday Blitz"]
[Site "Chess.com"]
[Date "2019.12.03"]
[Round "1"]
[White "Msb2"]
[Black "r31415"]
[Result "1-0"]
[WhiteElo "2826"]
[BlackElo "2445"]
[TimeControl "180+2"]
[EndTime "13:08:43 PST"]
[Termination "Msb2 won by resignation"]

1. d4 {[%clk 0:03:01.9]} 1... d6 {[%clk 0:02:59.9]} 2. Nf3 {[%clk 0:03:02.3]}
2... g6 {[%clk 0:03:01]} 3. c4 {[%clk 0:03:03.5]} 3... f5 {[%clk 0:03:02.4]} 4.
Nc3 {[%clk 0:03:03.1]} 4... Nf6 {[%clk 0:03:03.2]} 5. Bg5 {[%clk 0:02:58.5]}
5... Bg7 {[%clk 0:03:04.4]} 6. Bxf6 {[%clk 0:02:59.5]} 6... Bxf6 {[%clk
0:03:06.3]} 7. e4 {[%clk 0:03:00.6]} 7... e6 {[%clk 0:02:49]} 8. h4 {[%clk
0:02:52.8]} 8... Nc6 {[%clk 0:02:44]} 9. Be2 {[%clk 0:02:45.1]} 9... e5 {[%clk
0:02:40]} 10. d5 {[%clk 0:02:44.2]} 10... Ne7 {[%clk 0:02:40.5]} 11. h5 {[%clk
0:02:42.3]} 11... f4 {[%clk 0:02:40.7]} 12. Nd2 {[%clk 0:02:29.4]} 12... Bd7
{[%clk 0:02:29.5]} 13. Bg4 {[%clk 0:02:29.4]} 13... Qc8 {[%clk 0:02:30.7]} 14.
Bxd7+ {[%clk 0:02:27.2]} 14... Qxd7 {[%clk 0:02:32.6]} 15. Qe2 {[%clk
0:02:24.4]} 15... c5 {[%clk 0:02:24.1]} 16. O-O-O {[%clk 0:02:20.5]} 16... g5
{[%clk 0:02:20.1]} 17. g4 {[%clk 0:02:10.8]} 17... O-O {[%clk 0:02:09.4]} 18.
Kc2 {[%clk 0:01:59.5]} 18... Nc8 {[%clk 0:02:10.2]} 19. Rb1 {[%clk 0:02:00.1]}
19... Bd8 {[%clk 0:02:09]} 20. a3 {[%clk 0:01:50.8]} 20... a5 {[%clk 0:02:05.3]}
21. b3 {[%clk 0:01:44.3]} 21... Na7 {[%clk 0:02:00.9]} 22. f3 {[%clk 0:01:45]}
22... Bc7 {[%clk 0:01:53.6]} 23. Rhc1 {[%clk 0:01:45.9]} 23... Rfb8 {[%clk
0:01:54.1]} 24. Kd1 {[%clk 0:01:41.7]} 24... Bd8 {[%clk 0:01:50.3]} 25. Ke1
{[%clk 0:01:41.2]} 25... Nc8 {[%clk 0:01:49.3]} 26. Kf1 {[%clk 0:01:42.2]} 26...
Na7 {[%clk 0:01:50.3]} 27. Kg2 {[%clk 0:01:43.2]} 27... Kg7 {[%clk 0:01:51.3]}
28. Qd3 {[%clk 0:01:39.2]} 28... h6 {[%clk 0:01:52.2]} 29. b4 {[%clk 0:01:35.1]}
29... axb4 {[%clk 0:01:52.9]} 30. axb4 {[%clk 0:01:37]} 30... cxb4 {[%clk
0:01:53.4]} 31. Rxb4 {[%clk 0:01:38.9]} 31... Ba5 {[%clk 0:01:54.6]} 32. Rb3
{[%clk 0:01:40.3]} 32... b5 {[%clk 0:01:45.2]} 33. Rcb1 {[%clk 0:01:17.7]} 33...
Bxc3 {[%clk 0:01:11.3]} 34. Qxc3 {[%clk 0:01:18]} 34... Rc8 {[%clk 0:01:11.4]}
35. Qd3 {[%clk 0:00:45.9]} 35... Rc5 {[%clk 0:00:27.4]} 36. cxb5 {[%clk
0:00:45.9]} 36... Rb8 {[%clk 0:00:25.9]} 37. b6 {[%clk 0:00:47.1]} 37... Nc8
{[%clk 0:00:26.5]} 38. b7 {[%clk 0:00:45.9]} 38... Na7 {[%clk 0:00:27.6]} 39.
Qa6 {[%clk 0:00:45.9]} 39... Rc2 {[%clk 0:00:21.2]} 40. R1b2 {[%clk 0:00:47.4]}
40... Rxb2 {[%clk 0:00:08.6]} 41. Rxb2 {[%clk 0:00:49.3]} 41... Nc8 {[%clk
0:00:09.8]} 42. bxc8=Q {[%clk 0:00:48.5]} 42... Rxc8 {[%clk 0:00:11.1]} 43. Rb7
{[%clk 0:00:46.4]} 43... Rc7 {[%clk 0:00:13]} 44. Rxc7 {[%clk 0:00:43.3]} 44...
Qxc7 {[%clk 0:00:14.3]} 45. Nc4 {[%clk 0:00:44.9]} 45... Qb8 {[%clk 0:00:10.2]}
46. Qxd6 {[%clk 0:00:45.5]} 46... Qb3 {[%clk 0:00:10.7]} 47. Qxe5+ {[%clk
0:00:46.8]} 47... Kh7 {[%clk 0:00:12.4]} 48. Qe7+ {[%clk 0:00:43.9]} 48... Kg8
{[%clk 0:00:13.2]} 49. Qe8+ {[%clk 0:00:44.9]} 49... Kh7 {[%clk 0:00:14.3]} 50.
Qg6+ {[%clk 0:00:46.4]} 50... Kh8 {[%clk 0:00:15.2]} 51. Qxh6+ {[%clk
0:00:48.3]} 51... Kg8 {[%clk 0:00:17.1]} 52. Qxg5+ {[%clk 0:00:49.9]} 1-0

[Event "*** Titled Tuesday Blitz"]
[Site "Chess.com"]
[Date "2019.12.03"]
[Round "1"]
[White "earling8018"]
[Black "Qvalda"]
[Result "0-1"]
[WhiteElo "1915"]
[BlackElo "2525"]
[TimeControl "180+2"]
[EndTime "13:08:45 PST"]
[Termination "Qvalda won by resignation"]

1. c4 {[%clk 0:03:00.6]} 1... e5 {[%clk 0:02:57.7]} 2. Nc3 {[%clk 0:03:00.6]}
2... Bb4 {[%clk 0:02:56.9]} 3. Nf3 {[%clk 0:02:58.9]} 3... Bxc3 {[%clk
0:02:56.6]} 4. bxc3 {[%clk 0:02:54.7]} 4... d6 {[%clk 0:02:56.5]} 5. g3 {[%clk
0:02:54.3]} 5... f5 {[%clk 0:02:57.4]} 6. Bg2 {[%clk 0:02:54.7]} 6... Nf6 {[%clk
0:02:58.6]} 7. O-O {[%clk 0:02:55.4]} 7... O-O {[%clk 0:02:54.3]} 8. d3 {[%clk
0:02:50.6]} 8... Nc6 {[%clk 0:02:52.7]} 9. Rb1 {[%clk 0:02:47.2]} 9... Qe8
{[%clk 0:02:53.7]} 10. Ba3 {[%clk 0:02:38.7]} 10... Qh5 {[%clk 0:02:35.5]} 11.
Nd2 {[%clk 0:02:01.1]} 11... f4 {[%clk 0:02:17.7]} 12. Ne4 {[%clk 0:01:33.7]}
12... Bh3 {[%clk 0:01:57.1]} 13. Bxh3 {[%clk 0:00:58.5]} 13... Qxh3 {[%clk
0:01:51.3]} 14. Ng5 {[%clk 0:00:59.3]} 14... Qh5 {[%clk 0:01:27.5]} 15. h4
{[%clk 0:00:45.7]} 15... h6 {[%clk 0:00:56.2]} 16. Ne4 {[%clk 0:00:33.8]} 16...
Nxe4 {[%clk 0:00:41.3]} 17. dxe4 {[%clk 0:00:34.2]} 17... fxg3 {[%clk
0:00:40.8]} 18. fxg3 {[%clk 0:00:34.6]} 18... Qg4 {[%clk 0:00:20.6]} 19. Qd3
{[%clk 0:00:30.8]} 19... Rxf1+ {[%clk 0:00:18.7]} 20. Rxf1 {[%clk 0:00:30.8]}
20... Ne7 {[%clk 0:00:13.2]} 21. Qf3 {[%clk 0:00:22.2]} 21... Qe6 {[%clk
0:00:11]} 22. Qd3 {[%clk 0:00:17.6]} 22... Rf8 {[%clk 0:00:08.8]} 23. Rxf8+
{[%clk 0:00:16.5]} 23... Kxf8 {[%clk 0:00:10.7]} 24. Kg2 {[%clk 0:00:16.6]}
24... c5 {[%clk 0:00:06.2]} 25. Bc1 {[%clk 0:00:15.3]} 25... Ng8 {[%clk
0:00:06.9]} 26. Be3 {[%clk 0:00:12.4]} 26... Nf6 {[%clk 0:00:07.7]} 27. Bg1
{[%clk 0:00:10.9]} 27... Ke7 {[%clk 0:00:07.1]} 28. Bf2 {[%clk 0:00:08.2]} 28...
Qg4 {[%clk 0:00:06.9]} 29. Qf3 {[%clk 0:00:05.2]} 29... Qxe4 {[%clk 0:00:06.9]}
30. Qxe4 {[%clk 0:00:04.8]} 30... Nxe4 {[%clk 0:00:08.8]} 31. Be1 {[%clk
0:00:05.8]} 31... Ke6 {[%clk 0:00:09.5]} 32. Kf3 {[%clk 0:00:06]} 32... Nf6
{[%clk 0:00:10.5]} 33. g4 {[%clk 0:00:05.9]} 33... g6 {[%clk 0:00:10.8]} 34. g5
{[%clk 0:00:04.3]} 34... hxg5 {[%clk 0:00:11.6]} 35. hxg5 {[%clk 0:00:05.6]}
35... Ne8 {[%clk 0:00:09.2]} 36. Kg4 {[%clk 0:00:06.8]} 36... Nc7 {[%clk
0:00:10]} 37. Bf2 {[%clk 0:00:05.7]} 37... Na8 {[%clk 0:00:10.8]} 38. Be1 {[%clk
0:00:03.8]} 38... Nb6 {[%clk 0:00:11.9]} 39. Bd2 {[%clk 0:00:03.4]} 39... Nxc4
{[%clk 0:00:13]} 40. Bc1 {[%clk 0:00:04.4]} 40... b5 {[%clk 0:00:14.4]} 0-1